[Event "Late-Titled-Tuesday-Blitz-September-19-2023"]
[Site "Chess.com"]
[Date "2023.09.19"]
[Round "10"]
[White "AlexandraBotez"]
[Black "canary2016"]
[Result "1-0"]
[WhiteElo "2301"]
[BlackElo "2149"]
[TimeControl "180+1"]
[EndTime "15:57:14 PDT"]
[Termination "AlexandraBotez won by checkmate"]

1. d4 {[%clk 0:03:00.9]} 1... Nf6 {[%clk 0:02:59.1]} 2. c4 {[%clk 0:03:00.8]}
2... e6 {[%clk 0:02:58.7]} 3. Nf3 {[%clk 0:03:00.3]} 3... d5 {[%clk 0:02:57.3]}
4. e3 {[%clk 0:03:00.1]} 4... Be7 {[%clk 0:02:53.9]} 5. Nc3 {[%clk 0:02:57.6]}
5... O-O {[%clk 0:02:53.6]} 6. cxd5 {[%clk 0:02:54.6]} 6... exd5 {[%clk
0:02:53.6]} 7. Bd3 {[%clk 0:02:54.6]} 7... b6 {[%clk 0:02:52.6]} 8. O-O {[%clk
0:02:54.9]} 8... Bb7 {[%clk 0:02:52.8]} 9. a3 {[%clk 0:02:52.5]} 9... c5 {[%clk
0:02:52.3]} 10. dxc5 {[%clk 0:02:52.4]} 10... bxc5 {[%clk 0:02:51.3]} 11. Bd2
{[%clk 0:02:49.9]} 11... Nc6 {[%clk 0:02:47.7]} 12. Rc1 {[%clk 0:02:48.4]} 12...
Rc8 {[%clk 0:02:47.6]} 13. Bb1 {[%clk 0:02:46.8]} 13... d4 {[%clk 0:02:41.3]}
14. exd4 {[%clk 0:02:44.9]} 14... cxd4 {[%clk 0:02:41.2]} 15. Ne4 {[%clk
0:02:04.8]} 15... Re8 {[%clk 0:02:19.9]} 16. Re1 {[%clk 0:01:49.8]} 16... Qb6
{[%clk 0:02:04.4]} 17. b4 {[%clk 0:01:41.1]} 17... a5 {[%clk 0:01:31.6]} 18.
Nxf6+ {[%clk 0:01:10.1]} 18... Bxf6 {[%clk 0:01:29.4]} 19. Qb3 {[%clk
0:01:08.6]} 19... axb4 {[%clk 0:01:23.3]} 20. axb4 {[%clk 0:01:08.3]} 20... g6
{[%clk 0:00:58.2]} 21. Ba2 {[%clk 0:01:06.6]} 21... Rf8 {[%clk 0:00:49.8]} 22.
Bh6 {[%clk 0:01:02.7]} 22... Bg7 {[%clk 0:00:49.2]} 23. Bxg7 {[%clk 0:01:02.7]}
23... Kxg7 {[%clk 0:00:48.7]} 24. Ng5 {[%clk 0:00:55.8]} 24... Nd8 {[%clk
0:00:44.4]} 25. Rxc8 {[%clk 0:00:48.1]} 25... Bxc8 {[%clk 0:00:44.2]} 26. h3
{[%clk 0:00:18.9]} 26... Ne6 {[%clk 0:00:36.9]} 27. Nf3 {[%clk 0:00:18.6]} 27...
Qd6 {[%clk 0:00:27.3]} 28. Rd1 {[%clk 0:00:18.2]} 28... Qf4 {[%clk 0:00:24.2]}
29. b5 {[%clk 0:00:16.5]} 29... Bb7 {[%clk 0:00:22.9]} 30. Qd3 {[%clk 0:00:09]}
30... Rd8 {[%clk 0:00:21.2]} 31. Bxe6 {[%clk 0:00:07.6]} 31... fxe6 {[%clk
0:00:20.7]} 32. Re1 {[%clk 0:00:05.7]} 32... Bd5 {[%clk 0:00:15.1]} 33. Qxd4+
{[%clk 0:00:04.6]} 33... Qxd4 {[%clk 0:00:15.2]} 34. Nxd4 {[%clk 0:00:05.5]}
34... Kf6 {[%clk 0:00:15]} 35. Nc6 {[%clk 0:00:05.3]} 35... Bxc6 {[%clk
0:00:11.9]} 36. bxc6 {[%clk 0:00:05.6]} 36... Rc8 {[%clk 0:00:12.6]} 37. Rc1
{[%clk 0:00:05.9]} 37... Ke7 {[%clk 0:00:12.8]} 38. f4 {[%clk 0:00:04.3]} 38...
Kd6 {[%clk 0:00:13]} 39. Kf2 {[%clk 0:00:04.5]} 39... Rxc6 {[%clk 0:00:13.2]}
40. Rd1+ {[%clk 0:00:03.4]} 40... Ke7 {[%clk 0:00:13.3]} 41. Rd2 {[%clk
0:00:04.3]} 41... Kf6 {[%clk 0:00:13.4]} 42. g3 {[%clk 0:00:04.9]} 42... Rc4
{[%clk 0:00:13.4]} 43. Re2 {[%clk 0:00:05.7]} 43... Rc3 {[%clk 0:00:13.6]} 44.
Kg2 {[%clk 0:00:06]} 44... Rb3 {[%clk 0:00:13.9]} 45. Kf2 {[%clk 0:00:06]} 45...
Ra3 {[%clk 0:00:14.2]} 46. Rd2 {[%clk 0:00:06.5]} 46... Rb3 {[%clk 0:00:14.2]}
47. g4 {[%clk 0:00:06.3]} 47... Rxh3 {[%clk 0:00:13.5]} 48. Rd8 {[%clk
0:00:05.1]} 48... h6 {[%clk 0:00:11.2]} 49. Rf8+ {[%clk 0:00:05.1]} 49... Kg7
{[%clk 0:00:11.1]} 50. Re8 {[%clk 0:00:05.1]} 50... Kf7 {[%clk 0:00:11.3]} 51.
Rh8 {[%clk 0:00:05.4]} 51... h5 {[%clk 0:00:11.2]} 52. g5 {[%clk 0:00:04.8]}
52... Rh4 {[%clk 0:00:11.1]} 53. Kf3 {[%clk 0:00:04.7]} 53... Rh1 {[%clk
0:00:10.3]} 54. Rh7+ {[%clk 0:00:04.8]} 54... Kf8 {[%clk 0:00:08.9]} 55. Ra7
{[%clk 0:00:04.8]} 55... Re1 {[%clk 0:00:08.3]} 56. Rh7 {[%clk 0:00:04]} 56...
Rb1 {[%clk 0:00:07]} 57. Ke4 {[%clk 0:00:04.1]} 57... Rb5 {[%clk 0:00:05.6]} 58.
Ra7 {[%clk 0:00:03.3]} 58... h4 {[%clk 0:00:05.6]} 59. Ra3 {[%clk 0:00:03.5]}
59... Rb4+ {[%clk 0:00:05.3]} 60. Ke5 {[%clk 0:00:03.8]} 60... Kf7 {[%clk
0:00:03.6]} 61. Ra7+ {[%clk 0:00:03.7]} 61... Kf8 {[%clk 0:00:03.9]} 62. Ra8+
{[%clk 0:00:04.2]} 62... Kf7 {[%clk 0:00:04]} 63. Ra7+ {[%clk 0:00:04.7]} 63...
Kf8 {[%clk 0:00:04.2]} 64. Ra3 {[%clk 0:00:05.6]} 64... Kf7 {[%clk 0:00:03.1]}
65. Rh3 {[%clk 0:00:06.2]} 65... Rb5+ {[%clk 0:00:02.5]} 66. Ke4 {[%clk
0:00:06.7]} 66... Rb4+ {[%clk 0:00:03.1]} 67. Ke5 {[%clk 0:00:06.7]} 67... Rb5+
{[%clk 0:00:03.7]} 68. Kd6 {[%clk 0:00:07.2]} 68... Rb6+ {[%clk 0:00:04]} 69.
Kc5 {[%clk 0:00:07.1]} 69... Rb8 {[%clk 0:00:04.1]} 70. Rxh4 {[%clk 0:00:07.5]}
70... Rc8+ {[%clk 0:00:04.7]} 71. Kd6 {[%clk 0:00:08]} 71... Rd8+ {[%clk
0:00:05.2]} 72. Ke5 {[%clk 0:00:08.2]} 72... Rd5+ {[%clk 0:00:05.4]} 73. Ke4
{[%clk 0:00:08.8]} 73... Rc5 {[%clk 0:00:05.8]} 74. Rh7+ {[%clk 0:00:09]} 74...
Kf8 {[%clk 0:00:06.4]} 75. Ra7 {[%clk 0:00:09.5]} 75... Rc4+ {[%clk 0:00:06.4]}
76. Ke5 {[%clk 0:00:10.1]} 76... Rc1 {[%clk 0:00:06.2]} 77. Kf6 {[%clk
0:00:10.3]} 77... Ke8 {[%clk 0:00:04.6]} 78. Kxe6 {[%clk 0:00:10.1]} 78... Re1+
{[%clk 0:00:04.6]} 79. Kf6 {[%clk 0:00:10.6]} 79... Rf1 {[%clk 0:00:03.8]} 80.
Ra4 {[%clk 0:00:10.6]} 80... Rf3 {[%clk 0:00:03.4]} 81. Kxg6 {[%clk 0:00:11.1]}
81... Kf8 {[%clk 0:00:03.7]} 82. f5 {[%clk 0:00:11.7]} 82... Kg8 {[%clk
0:00:04.2]} 83. Ra8# {[%clk 0:00:11.2]} 1-0

[Event "Late-Titled-Tuesday-Blitz-September-19-2023"]
[Site "Chess.com"]
[Date "2023.09.19"]
[Round "10"]
[White "kleopl"]
[Black "Der_Honigdachs"]
[Result "1/2-1/2"]
[WhiteElo "2465"]
[BlackElo "2519"]
[TimeControl "180+1"]
[EndTime "15:57:15 PDT"]
[Termination "Game drawn by stalemate"]

1. e4 {[%clk 0:03:00.9]} 1... d5 {[%clk 0:02:58.5]} 2. exd5 {[%clk 0:03:00.6]}
2... Qxd5 {[%clk 0:02:59.4]} 3. Nc3 {[%clk 0:03:00.6]} 3... Qd6 {[%clk
0:03:00.3]} 4. d4 {[%clk 0:03:00.5]} 4... Nf6 {[%clk 0:03:00.7]} 5. Nf3 {[%clk
0:03:00.1]} 5... c6 {[%clk 0:03:01.1]} 6. Ne5 {[%clk 0:02:59.5]} 6... Nbd7
{[%clk 0:03:00.5]} 7. Nc4 {[%clk 0:02:55.8]} 7... Qc7 {[%clk 0:02:59.3]} 8. Qf3
{[%clk 0:02:54.9]} 8... Nb6 {[%clk 0:02:58.4]} 9. Bf4 {[%clk 0:02:53.4]} 9...
Qd7 {[%clk 0:02:55]} 10. O-O-O {[%clk 0:02:52.9]} 10... Qg4 {[%clk 0:02:43.9]}
11. Qxg4 {[%clk 0:02:44.3]} 11... Bxg4 {[%clk 0:02:44.8]} 12. f3 {[%clk
0:02:43.6]} 12... Bh5 {[%clk 0:02:42.3]} 13. Ne5 {[%clk 0:02:40.4]} 13... e6
{[%clk 0:02:39.6]} 14. h4 {[%clk 0:02:36.3]} 14... Nfd5 {[%clk 0:02:30.2]} 15.
Nxd5 {[%clk 0:02:30.4]} 15... Nxd5 {[%clk 0:02:30.3]} 16. Bd2 {[%clk 0:02:30.1]}
16... f6 {[%clk 0:02:30.6]} 17. Nd3 {[%clk 0:02:19.4]} 17... O-O-O {[%clk
0:02:28.5]} 18. g4 {[%clk 0:01:56.6]} 18... Bg6 {[%clk 0:02:26.8]} 19. h5 {[%clk
0:01:56.6]} 19... Bf7 {[%clk 0:02:25.4]} 20. b3 {[%clk 0:01:45.3]} 20... Nc7
{[%clk 0:02:08.9]} 21. c3 {[%clk 0:01:42.8]} 21... Be7 {[%clk 0:01:59.6]} 22.
Kc2 {[%clk 0:01:41.4]} 22... Nb5 {[%clk 0:01:55.2]} 23. a4 {[%clk 0:01:39.3]}
23... Nc7 {[%clk 0:01:53.6]} 24. Nf4 {[%clk 0:01:26.3]} 24... g5 {[%clk
0:01:50.4]} 25. hxg6 {[%clk 0:01:24.1]} 25... hxg6 {[%clk 0:01:49.6]} 26. Bd3
{[%clk 0:01:22.5]} 26... g5 {[%clk 0:01:43.4]} 27. Ne2 {[%clk 0:01:16.8]} 27...
Nd5 {[%clk 0:01:40]} 28. Ng3 {[%clk 0:01:13.2]} 28... Bd6 {[%clk 0:01:36.8]} 29.
Ne4 {[%clk 0:01:13]} 29... Bf4 {[%clk 0:01:34.8]} 30. c4 {[%clk 0:01:04.6]}
30... Bxd2 {[%clk 0:01:34]} 31. Kxd2 {[%clk 0:01:03.5]} 31... Nf4 {[%clk
0:01:28.8]} 32. Rxh8 {[%clk 0:00:58.8]} 32... Rxh8 {[%clk 0:01:29.4]} 33. Nxf6
{[%clk 0:00:58.4]} 33... Rh2+ {[%clk 0:01:29.4]} 34. Kc3 {[%clk 0:00:51.9]}
34... Rf2 {[%clk 0:01:15.1]} 35. Be4 {[%clk 0:00:50.2]} 35... Bg6 {[%clk
0:01:05.3]} 36. Kb4 {[%clk 0:00:32]} 36... b6 {[%clk 0:00:33.8]} 37. a5 {[%clk
0:00:30.3]} 37... Kc7 {[%clk 0:00:28.3]} 38. axb6+ {[%clk 0:00:28.7]} 38... axb6
{[%clk 0:00:29.2]} 39. Rh1 {[%clk 0:00:26.9]} 39... Bxe4 {[%clk 0:00:17.1]} 40.
Nxe4 {[%clk 0:00:26.2]} 40... Nd3+ {[%clk 0:00:17.8]} 41. Kc3 {[%clk 0:00:24]}
41... Rxf3 {[%clk 0:00:18.7]} 42. Nxg5 {[%clk 0:00:22.3]} 42... Rg3 {[%clk
0:00:18.9]} 43. Nxe6+ {[%clk 0:00:21.4]} 43... Kd6 {[%clk 0:00:18.7]} 44. Rh6
{[%clk 0:00:16.2]} 44... Nf4+ {[%clk 0:00:17.3]} 45. Kb4 {[%clk 0:00:15.5]}
45... Nxe6 {[%clk 0:00:17.7]} 46. d5 {[%clk 0:00:15.7]} 46... cxd5 {[%clk
0:00:17.3]} 47. cxd5 {[%clk 0:00:15.6]} 47... Kxd5 {[%clk 0:00:18]} 48. Rh5+
{[%clk 0:00:15.8]} 48... Kc6 {[%clk 0:00:17.1]} 49. Rh6 {[%clk 0:00:15.7]} 49...
Kd6 {[%clk 0:00:16.8]} 50. Kc4 {[%clk 0:00:14.2]} 50... Rxg4+ {[%clk 0:00:16.6]}
51. Kb5 {[%clk 0:00:14.6]} 51... Rg3 {[%clk 0:00:13.8]} 52. b4 {[%clk
0:00:14.3]} 52... Rg4 {[%clk 0:00:13]} 53. Kxb6 {[%clk 0:00:14.4]} 53... Rxb4+
{[%clk 0:00:13.7]} 54. Ka5 {[%clk 0:00:15]} 54... Rb8 {[%clk 0:00:13.4]} 55. Ka4
{[%clk 0:00:15]} 55... Kd5 {[%clk 0:00:13.6]} 56. Ka3 {[%clk 0:00:13.7]} 56...
Nd4 {[%clk 0:00:12.9]} 57. Rh7 {[%clk 0:00:12.2]} 57... Kc5 {[%clk 0:00:12.3]}
58. Rc7+ {[%clk 0:00:12.2]} 58... Nc6 {[%clk 0:00:12.3]} 59. Rh7 {[%clk
0:00:12.3]} 59... Kc4 {[%clk 0:00:12.9]} 60. Rh4+ {[%clk 0:00:09.4]} 60... Nd4
{[%clk 0:00:12.5]} 61. Ka2 {[%clk 0:00:09.8]} 61... Kc3 {[%clk 0:00:11.5]} 62.
Rh3+ {[%clk 0:00:09.6]} 62... Kd2 {[%clk 0:00:10.6]} 63. Rh2+ {[%clk 0:00:09.3]}
63... Ne2 {[%clk 0:00:10.6]} 64. Ka3 {[%clk 0:00:09.6]} 64... Kc3 {[%clk
0:00:10.4]} 65. Rh3+ {[%clk 0:00:08.8]} 65... Kc4 {[%clk 0:00:10.6]} 66. Rh4+
{[%clk 0:00:09]} 66... Nd4 {[%clk 0:00:10.1]} 67. Ka2 {[%clk 0:00:09.4]} 67...
Rb7 {[%clk 0:00:10.4]} 68. Rg4 {[%clk 0:00:09.7]} 68... Kc3 {[%clk 0:00:10.5]}
69. Rg3+ {[%clk 0:00:09.8]} 69... Kd2 {[%clk 0:00:08.9]} 70. Rg2+ {[%clk
0:00:10]} 70... Ne2 {[%clk 0:00:09.2]} 71. Rh2 {[%clk 0:00:10.2]} 71... Kd1
{[%clk 0:00:09.6]} 72. Ka3 {[%clk 0:00:09.7]} 72... Nc3 {[%clk 0:00:09.2]} 73.
Rd2+ {[%clk 0:00:08.5]} 73... Kc1 {[%clk 0:00:08.5]} 74. Rc2+ {[%clk 0:00:07.7]}
74... Kxc2 {[%clk 0:00:08.7]} 1/2-1/2

[Event "Late-Titled-Tuesday-Blitz-September-19-2023"]
[Site "Chess.com"]
[Date "2023.09.19"]
[Round "10"]
[White "ChessWarrior7197"]
[Black "SantoBlue"]
[Result "1-0"]
[WhiteElo "3064"]
[BlackElo "2945"]
[TimeControl "180+1"]
[EndTime "15:57:22 PDT"]
[Termination "ChessWarrior7197 won on time"]

1. d4 {[%clk 0:03:00.9]} 1... d5 {[%clk 0:02:58.5]} 2. c4 {[%clk 0:03:01.2]}
2... c6 {[%clk 0:02:59.1]} 3. cxd5 {[%clk 0:03:01.3]} 3... cxd5 {[%clk
0:02:58.8]} 4. Nc3 {[%clk 0:03:02.2]} 4... Nc6 {[%clk 0:02:58.3]} 5. Bf4 {[%clk
0:03:02.6]} 5... e6 {[%clk 0:02:57]} 6. e3 {[%clk 0:03:02.8]} 6... Bd6 {[%clk
0:02:57]} 7. Bxd6 {[%clk 0:03:02.8]} 7... Qxd6 {[%clk 0:02:57.7]} 8. Bd3 {[%clk
0:03:03.3]} 8... Bd7 {[%clk 0:02:57.2]} 9. Rc1 {[%clk 0:02:58.2]} 9... Rc8
{[%clk 0:02:57.1]} 10. f4 {[%clk 0:02:56.7]} 10... Nge7 {[%clk 0:02:55.5]} 11.
Nf3 {[%clk 0:02:57]} 11... Nf5 {[%clk 0:02:55.1]} 12. Qd2 {[%clk 0:02:50.6]}
12... h5 {[%clk 0:02:45.2]} 13. O-O {[%clk 0:02:50.4]} 13... Nce7 {[%clk
0:02:41]} 14. Ne5 {[%clk 0:02:49.1]} 14... f6 {[%clk 0:02:34.8]} 15. Nxd7 {[%clk
0:02:38]} 15... Qxd7 {[%clk 0:02:35.2]} 16. Bb5 {[%clk 0:02:35.2]} 16... Nc6
{[%clk 0:02:34.8]} 17. Na4 {[%clk 0:02:35.7]} 17... Kf7 {[%clk 0:02:32]} 18. Nc5
{[%clk 0:02:35.5]} 18... Qe7 {[%clk 0:02:32.6]} 19. Bd3 {[%clk 0:02:34.9]} 19...
Nd6 {[%clk 0:02:27.7]} 20. Rc3 {[%clk 0:02:24.6]} 20... f5 {[%clk 0:02:26.1]}
21. Rfc1 {[%clk 0:02:24.3]} 21... Nb8 {[%clk 0:02:21.9]} 22. Be2 {[%clk
0:02:11.8]} 22... g6 {[%clk 0:02:19.7]} 23. Bf3 {[%clk 0:02:06.2]} 23... Kg7
{[%clk 0:02:19.1]} 24. Nd3 {[%clk 0:02:06.2]} 24... Rxc3 {[%clk 0:02:17.6]} 25.
Rxc3 {[%clk 0:02:07.1]} 25... Rc8 {[%clk 0:02:16]} 26. Ne5 {[%clk 0:02:07.4]}
26... Nc6 {[%clk 0:02:08.4]} 27. Qc2 {[%clk 0:01:51.5]} 27... Nxe5 {[%clk
0:01:57.8]} 28. fxe5 {[%clk 0:01:51.9]} 28... Rxc3 {[%clk 0:01:57.5]} 29. Qxc3
{[%clk 0:01:52.8]} 29... Nf7 {[%clk 0:01:54.4]} 30. Qc8 {[%clk 0:01:51.3]} 30...
Qg5 {[%clk 0:01:47.4]} 31. Kf2 {[%clk 0:01:46.1]} 31... Qh4+ {[%clk 0:01:47.4]}
32. Ke2 {[%clk 0:01:44.9]} 32... Qe7 {[%clk 0:01:46.9]} 33. h4 {[%clk
0:01:43.3]} 33... Nd8 {[%clk 0:01:29.8]} 34. Kd1 {[%clk 0:01:39.4]} 34... Qxh4
{[%clk 0:01:26.2]} 35. Be2 {[%clk 0:01:30.5]} 35... Qe7 {[%clk 0:01:25.5]} 36.
Bb5 {[%clk 0:01:27.2]} 36... a6 {[%clk 0:01:22]} 37. Bd7 {[%clk 0:01:25.4]}
37... g5 {[%clk 0:01:20.9]} 38. Ke2 {[%clk 0:01:25.8]} 38... g4 {[%clk 0:01:21]}
39. g3 {[%clk 0:01:25.6]} 39... h4 {[%clk 0:01:09]} 40. gxh4 {[%clk 0:01:25.3]}
40... g3 {[%clk 0:01:08.4]} 41. Kf3 {[%clk 0:01:15.2]} 41... Qxh4 {[%clk
0:01:07.7]} 42. Bxe6 {[%clk 0:01:15.9]} 42... Qh5+ {[%clk 0:01:03]} 43. Kxg3
{[%clk 0:01:07.5]} 43... Qg6+ {[%clk 0:01:03.5]} 44. Kf2 {[%clk 0:01:08.2]}
44... Nxe6 {[%clk 0:01:04.2]} 45. Qxb7+ {[%clk 0:01:08.9]} 45... Kh6 {[%clk
0:01:01.9]} 46. Qxd5 {[%clk 0:01:09.5]} 46... Ng5 {[%clk 0:01:02.1]} 47. Qh1+
{[%clk 0:01:08]} 47... Kg7 {[%clk 0:01:01.5]} 48. Qh4 {[%clk 0:00:47.1]} 48...
Ne4+ {[%clk 0:01:00.4]} 49. Kf3 {[%clk 0:00:47.7]} 49... Ng5+ {[%clk 0:00:49.1]}
50. Ke2 {[%clk 0:00:44.1]} 50... Nf7 {[%clk 0:00:22.3]} 51. Kd2 {[%clk
0:00:34.9]} 51... Qg2+ {[%clk 0:00:22.1]} 52. Kc3 {[%clk 0:00:35.6]} 52... Qc6+
{[%clk 0:00:22.4]} 53. Kd3 {[%clk 0:00:34.4]} 53... Qb5+ {[%clk 0:00:19.6]} 54.
Kc3 {[%clk 0:00:31.8]} 54... Qa5+ {[%clk 0:00:17.3]} 55. Kc2 {[%clk 0:00:28.3]}
55... Qa4+ {[%clk 0:00:16.1]} 56. Kc3 {[%clk 0:00:18.7]} 56... Qa5+ {[%clk
0:00:09.5]} 57. Kc2 {[%clk 0:00:13]} 57... Qa4+ {[%clk 0:00:10]} 58. b3 {[%clk
0:00:13.1]} 58... Qxa2+ {[%clk 0:00:10]} 59. Kc3 {[%clk 0:00:13.7]} 59... Qa1+
{[%clk 0:00:10.7]} 60. Kc2 {[%clk 0:00:13.9]} 60... Qa2+ {[%clk 0:00:10.4]} 61.
Kc3 {[%clk 0:00:14.5]} 61... Qa5+ {[%clk 0:00:11]} 62. Kc2 {[%clk 0:00:14.8]}
62... Qc7+ {[%clk 0:00:11]} 63. Kb2 {[%clk 0:00:15]} 63... Qc6 {[%clk 0:00:08]}
64. Qe7 {[%clk 0:00:14.4]} 64... Qg2+ {[%clk 0:00:06.3]} 65. Ka3 {[%clk
0:00:14.9]} 65... Qd2 {[%clk 0:00:04.8]} 66. Qc7 {[%clk 0:00:10.5]} 66... Qxe3
{[%clk 0:00:03.6]} 67. Qb6 {[%clk 0:00:08.8]} 67... f4 {[%clk 0:00:03.3]} 68.
Qf6+ {[%clk 0:00:08.6]} 68... Kg8 {[%clk 0:00:03.9]} 69. e6 {[%clk 0:00:09.5]}
69... Qc1+ {[%clk 0:00:04.2]} 70. Ka2 {[%clk 0:00:09.8]} 70... Qc2+ {[%clk
0:00:04.4]} 71. Ka3 {[%clk 0:00:10.6]} 71... Qc1+ {[%clk 0:00:04.6]} 72. Ka4
{[%clk 0:00:07.8]} 72... Qc6+ {[%clk 0:00:04.5]} 73. Ka3 {[%clk 0:00:07.8]}
73... Qd6+ {[%clk 0:00:04.8]} 74. Ka2 {[%clk 0:00:08]} 74... Nh8 {[%clk
0:00:02.9]} 75. d5 {[%clk 0:00:06.6]} 75... Qxd5 {[%clk 0:00:01.6]} 76. e7
{[%clk 0:00:06.4]} 76... Qd1 {[%clk 0:00:01.8]} 77. e8=Q+ {[%clk 0:00:05.6]} 1-0

[Event "Late-Titled-Tuesday-Blitz-September-19-2023"]
[Site "Chess.com"]
[Date "2023.09.19"]
[Round "10"]
[White "Nathan_Filgueiras"]
[Black "JoakimVonAnd"]
[Result "1-0"]
[WhiteElo "2534"]
[BlackElo "2701"]
[TimeControl "180+1"]
[EndTime "15:57:48 PDT"]
[Termination "Nathan_Filgueiras won by checkmate"]

1. e4 {[%clk 0:03:00.9]} 1... c6 {[%clk 0:02:57]} 2. d4 {[%clk 0:03:00.9]} 2...
d5 {[%clk 0:02:57.3]} 3. e5 {[%clk 0:03:01.1]} 3... Bf5 {[%clk 0:02:56.8]} 4.
Nf3 {[%clk 0:02:59.1]} 4... e6 {[%clk 0:02:57.2]} 5. Be2 {[%clk 0:02:59.3]} 5...
Bb4+ {[%clk 0:02:57.4]} 6. Bd2 {[%clk 0:02:45.6]} 6... Bxd2+ {[%clk 0:02:54.8]}
7. Nbxd2 {[%clk 0:02:46.5]} 7... Nd7 {[%clk 0:02:54]} 8. O-O {[%clk 0:02:44.6]}
8... f6 {[%clk 0:02:35.3]} 9. c4 {[%clk 0:02:37.3]} 9... fxe5 {[%clk 0:02:32.9]}
10. cxd5 {[%clk 0:02:36.8]} 10... cxd5 {[%clk 0:02:29.1]} 11. Nxe5 {[%clk
0:02:25.6]} 11... Nxe5 {[%clk 0:02:29.2]} 12. dxe5 {[%clk 0:02:26.5]} 12... Ne7
{[%clk 0:02:29.7]} 13. Nf3 {[%clk 0:02:23.8]} 13... O-O {[%clk 0:02:25.9]} 14.
Nd4 {[%clk 0:02:23]} 14... Qd7 {[%clk 0:02:24.6]} 15. Bb5 {[%clk 0:02:19.5]}
15... Nc6 {[%clk 0:02:22.1]} 16. Bxc6 {[%clk 0:02:16.7]} 16... bxc6 {[%clk
0:02:23]} 17. Rc1 {[%clk 0:02:15.9]} 17... Rab8 {[%clk 0:02:13.4]} 18. Nb3
{[%clk 0:02:08.6]} 18... Rfc8 {[%clk 0:02:09.5]} 19. Qd4 {[%clk 0:02:04.3]}
19... Qe7 {[%clk 0:02:06]} 20. Rc5 {[%clk 0:02:00.8]} 20... Qg5 {[%clk
0:01:39.2]} 21. Rfc1 {[%clk 0:01:46.3]} 21... Be4 {[%clk 0:01:38.2]} 22. g3
{[%clk 0:01:41.8]} 22... Qf5 {[%clk 0:01:24.8]} 23. Nd2 {[%clk 0:01:36.4]} 23...
Rb6 {[%clk 0:01:23.5]} 24. Nxe4 {[%clk 0:01:34.8]} 24... dxe4 {[%clk 0:01:22.6]}
25. b3 {[%clk 0:01:21.9]} 25... h6 {[%clk 0:01:20.5]} 26. R5c4 {[%clk
0:01:11.2]} 26... Rf8 {[%clk 0:01:16]} 27. R1c2 {[%clk 0:01:10.3]} 27... Rb5
{[%clk 0:01:15.1]} 28. Qxe4 {[%clk 0:01:08.5]} 28... Rxe5 {[%clk 0:01:02.3]} 29.
Qxf5 {[%clk 0:01:07.5]} 29... exf5 {[%clk 0:01:01.5]} 30. Rxc6 {[%clk
0:01:06.7]} 30... f4 {[%clk 0:01:02.1]} 31. gxf4 {[%clk 0:01:03.2]} 31... Rxf4
{[%clk 0:01:01.9]} 32. Rc7 {[%clk 0:01:03.8]} 32... Rg5+ {[%clk 0:00:59.4]} 33.
Kf1 {[%clk 0:01:03.1]} 33... a5 {[%clk 0:00:58.9]} 34. Ra7 {[%clk 0:01:00.7]}
34... Rh4 {[%clk 0:00:57.7]} 35. f3 {[%clk 0:00:43.3]} 35... Rf4 {[%clk
0:00:52.4]} 36. Rf2 {[%clk 0:00:35]} 36... Rc5 {[%clk 0:00:44.4]} 37. Re7 {[%clk
0:00:25.7]} 37... Rd4 {[%clk 0:00:43.6]} 38. Re4 {[%clk 0:00:21.1]} 38... Rd1+
{[%clk 0:00:37.6]} 39. Kg2 {[%clk 0:00:21.3]} 39... Rg5+ {[%clk 0:00:37]} 40.
Rg4 {[%clk 0:00:19.9]} 40... Re5 {[%clk 0:00:35.9]} 41. Rc2 {[%clk 0:00:19.5]}
41... h5 {[%clk 0:00:34.6]} 42. Re4 {[%clk 0:00:19.1]} 42... Rg5+ {[%clk
0:00:34]} 43. Kf2 {[%clk 0:00:19.7]} 43... Rdg1 {[%clk 0:00:32.5]} 44. Rc8+
{[%clk 0:00:19.1]} 44... Kh7 {[%clk 0:00:32.4]} 45. Ke3 {[%clk 0:00:18.8]} 45...
R1g2 {[%clk 0:00:32.2]} 46. h4 {[%clk 0:00:17.7]} 46... Rd5 {[%clk 0:00:28.7]}
47. a4 {[%clk 0:00:13.8]} 47... Rb2 {[%clk 0:00:27.6]} 48. Rb8 {[%clk 0:00:14]}
48... Rc5 {[%clk 0:00:25.4]} 49. Kf4 {[%clk 0:00:14.1]} 49... Rc3 {[%clk
0:00:20.5]} 50. Re5 {[%clk 0:00:14.2]} 50... Rcxb3 {[%clk 0:00:19.5]} 51. Rxb3
{[%clk 0:00:13.6]} 51... Rxb3 {[%clk 0:00:20.4]} 52. Rxh5+ {[%clk 0:00:13.9]}
52... Kg6 {[%clk 0:00:18.3]} 53. Rxa5 {[%clk 0:00:14.8]} 53... Rb4+ {[%clk
0:00:17.7]} 54. Kg3 {[%clk 0:00:14.8]} 54... Kf6 {[%clk 0:00:17.1]} 55. f4
{[%clk 0:00:15]} 55... Kg6 {[%clk 0:00:16.7]} 56. Kg4 {[%clk 0:00:15.4]} 56...
Kf6 {[%clk 0:00:16.5]} 57. Ra6+ {[%clk 0:00:15.8]} 57... Kf7 {[%clk 0:00:16.8]}
58. a5 {[%clk 0:00:16.4]} 58... Rb5 {[%clk 0:00:16.2]} 59. f5 {[%clk 0:00:16]}
59... Kg8 {[%clk 0:00:16.6]} 60. Kg5 {[%clk 0:00:16.3]} 60... Rb1 {[%clk
0:00:15.8]} 61. Ra7 {[%clk 0:00:14]} 61... Rg1+ {[%clk 0:00:14.5]} 62. Kh5
{[%clk 0:00:14.1]} 62... Rf1 {[%clk 0:00:12.8]} 63. Kg4 {[%clk 0:00:14.4]} 63...
Rg1+ {[%clk 0:00:12.9]} 64. Kf4 {[%clk 0:00:14.8]} 64... Rf1+ {[%clk 0:00:13.5]}
65. Ke5 {[%clk 0:00:15]} 65... Re1+ {[%clk 0:00:14.1]} 66. Kd5 {[%clk 0:00:13]}
66... Rf1 {[%clk 0:00:14.1]} 67. a6 {[%clk 0:00:07.9]} 67... Rxf5+ {[%clk
0:00:13.9]} 68. Kc6 {[%clk 0:00:08.2]} 68... Rf6+ {[%clk 0:00:09.7]} 69. Kb7
{[%clk 0:00:07.6]} 69... Rf7+ {[%clk 0:00:10.3]} 70. Kb6 {[%clk 0:00:06.9]}
70... Rf6+ {[%clk 0:00:10.7]} 71. Kc5 {[%clk 0:00:06.6]} 71... Rf5+ {[%clk
0:00:11.2]} 72. Kd6 {[%clk 0:00:07.1]} 72... Ra5 {[%clk 0:00:09.1]} 73. Ra8+
{[%clk 0:00:04.8]} 73... Kh7 {[%clk 0:00:09.5]} 74. Kc6 {[%clk 0:00:05.5]} 74...
Ra1 {[%clk 0:00:06.2]} 75. Kb6 {[%clk 0:00:05.9]} 75... Kg6 {[%clk 0:00:05.8]}
76. Ka7 {[%clk 0:00:05.9]} 76... Kh7 {[%clk 0:00:02.8]} 77. Rc8 {[%clk
0:00:04.8]} 77... Kg6 {[%clk 0:00:03]} 78. Rc4 {[%clk 0:00:04.8]} 78... Kh5
{[%clk 0:00:03.4]} 79. Kb6 {[%clk 0:00:04.8]} 79... Rb1+ {[%clk 0:00:03.9]} 80.
Kc6 {[%clk 0:00:05.3]} 80... Ra1 {[%clk 0:00:03.5]} 81. Kb5 {[%clk 0:00:05.5]}
81... Rb1+ {[%clk 0:00:02.2]} 82. Rb4 {[%clk 0:00:06]} 82... Rd1 {[%clk
0:00:02.7]} 83. a7 {[%clk 0:00:06.5]} 83... Rd8 {[%clk 0:00:03.4]} 84. Ka6
{[%clk 0:00:07]} 84... Rc8 {[%clk 0:00:03.7]} 85. Kb7 {[%clk 0:00:07.3]} 85...
Rd8 {[%clk 0:00:04.2]} 86. a8=Q {[%clk 0:00:07.6]} 86... Rxa8 {[%clk 0:00:05.1]}
87. Kxa8 {[%clk 0:00:08.2]} 87... g5 {[%clk 0:00:05.3]} 88. hxg5 {[%clk
0:00:08.4]} 88... Kxg5 {[%clk 0:00:05.4]} 89. Kb7 {[%clk 0:00:09.3]} 89... Kf5
{[%clk 0:00:06.3]} 90. Kc6 {[%clk 0:00:10.2]} 90... Ke5 {[%clk 0:00:07.1]} 91.
Rb5+ {[%clk 0:00:10.8]} 91... Ke6 {[%clk 0:00:06.9]} 92. Rd5 {[%clk 0:00:11.7]}
92... Kf6 {[%clk 0:00:07.8]} 93. Kd6 {[%clk 0:00:12]} 93... Kg6 {[%clk
0:00:08.2]} 94. Re5 {[%clk 0:00:12.6]} 94... Kg7 {[%clk 0:00:09.1]} 95. Ke6
{[%clk 0:00:13]} 95... Kg6 {[%clk 0:00:09.5]} 96. Rf5 {[%clk 0:00:13.6]} 96...
Kg7 {[%clk 0:00:10.4]} 97. Rf6 {[%clk 0:00:14.2]} 97... Kh7 {[%clk 0:00:11.3]}
98. Kf7 {[%clk 0:00:14.3]} 98... Kh8 {[%clk 0:00:11.9]} 99. Rh6# {[%clk
0:00:15.2]} 1-0